bitfinex/quotes_SOLUSD_20251228
["timestamp","ask_amount","ask_price","bid_price","bid_amount"]
[1766898348063,0.89,124.1,124.07,0.67]
[1766898349261,0.2,124.1,124.08,0.69]
[1766898353872,0.67,124.09,124.06,10.01144304]
[1766898354074,2.82082721,124.1,124.07,0.69]
[1766898360577,2.15082721,124.1,124.07,0.69]
[1766898360775,2.62082721,124.09,124.06,0.69]
[1766898361274,1.95082721,124.09,124.07,0.69]
[1766898361782,2.62082721,124.08,124.05,0.69]
[1766898361977,3.71653684,124.08,124.05,0.69]
[1766898363675,3.04653684,124.07,124.05,0.69]
[1766898368291,3.71653684,124.08,124.05,0.69]
[1766898371693,0.67,124.08,124.05,0.69]
[1766898371898,3.24653684,124.1,124.06,0.69]
[1766898372197,0.67,124.09,124.06,0.69]
[1766898372985,0.67,124.09,124.06,15.41]
[1766898373875,0.67,124.09,124.06,23.47028876]
[1766898375201,0.67,124.09,124.06,22.78028876]
[1766898375498,0.67,124.09,124.07,0.71]
[1766898377306,0.2,124.1,124.07,8.0597432]
[1766898377507,3.91653684,124.1,124.08,0.71]
[1766898377698,3.91653684,124.1,124.07,8.0597432]
[1766898377699,3.91653684,124.1,124.07,8.7697432]
[1766898378998,0.87,124.1,124.07,8.7697432]
[1766898379175,3.91653684,124.1,124.07,8.7697432]
[1766898379800,3.91653684,124.1,124.07,23.4897432]
[1766898381101,0.87,124.1,124.08,0.71]
[1766898388913,3.91653684,124.1,124.08,0.71]
[1766898392819,0.87,124.1,124.08,0.71]
[1766898426863,0.68,124.12,124.09,0.71]
[1766898427145,0.68,124.12,124.09,2.65862724]
[1766898428645,0.68,124.14,124.1,2.65862724]
[1766898428847,0.68,124.12,124.09,8.76859308]
[1766898429058,2.62862724,124.13,124.1,0.71]
[1766898429228,0.68,124.12,124.1,0.71]
[1766898429434,0.68,124.12,124.1,15.43]
[1766898429930,1.94862724,124.12,124.1,14.72]
[1766898430134,2.62862724,124.11,124.1,14.72]
[1766898430541,0.68,124.11,124.1,14.72]
[1766898432961,0.68,124.11,124.07,8.76965997]
[1766898433149,2.62862724,124.11,124.08,15.43]
[1766898434458,0.68,124.11,124.08,15.43]
[1766898445565,0.68,124.11,124.08,0.71]
[1766898445757,0.68,124.11,124.08,15.43]
[1766898446577,0.68,124.11,124.08,0.71]
[1766898446751,0.68,124.11,124.08,15.43]
[1766898459589,0.68,124.11,124.08,0.71]
[1766898459787,0.68,124.11,124.08,15.43]
[1766898459987,0.68,124.11,124.08,17.37862724]
[1766898460586,0.68,124.11,124.08,2.65862724]
[1766898460776,0.68,124.11,124.08,17.37862724]
[1766898464696,0.68,124.11,124.08,2.65862724]
[1766898464900,0.68,124.11,124.08,17.37862724]
[1766898465199,0.68,124.11,124.08,2.65862724]
[1766898465378,0.68,124.11,124.08,17.37862724]
[1766898465580,0.68,124.11,124.08,2.65862724]
[1766898465878,0.68,124.11,124.08,17.37862724]
[1766898469297,0.68,124.11,124.08,2.65862724]
[1766898469598,0.68,124.11,124.08,17.37862724]
[1766898473815,0.68,124.11,124.08,15.43]
[1766898476586,0.68,124.11,124.07,10.00828721]
[1766898476789,0.68,124.11,124.08,14.72]
[1766898478919,0.68,124.11,124.08,15.41]
[1766898496158,0.68,124.11,124.08,0.69]
[1766898496359,0.68,124.11,124.08,15.41]
[1766898497060,0.68,124.11,124.08,0.69]
[1766898508191,3.04428676,124.1,124.06,3.75428676]
[1766898508366,0.69,124.09,124.07,14.72]
[1766898510293,0.69,124.09,124.06,0.71]
[1766898510798,0.69,124.08,124.05,0.71]
[1766898511087,0.69,124.08,124.05,15.43]
[1766898512261,0.69,124.08,124.05,0.71]
[1766898512661,0.69,124.08,124.05,3.75428676]
[1766898513686,0.69,124.08,124.05,3.04428676]
[1766898513887,0.69,124.07,124.04,3.04428676]
[1766898514089,0.69,124.07,124.04,0.71]
[1766898514262,0.69,124.07,124.04,3.75428676]
[1766898514667,0.69,124.07,124.04,0.71]
[1766898514867,0.69,124.07,124.04,3.75428676]
[1766898516085,0.69,124.07,124.04,0.71]
[1766898516387,0.69,124.07,124.04,3.75428676]
[1766898517286,0.69,124.07,124.04,11.81619852]
[1766898520065,0.69,124.07,124.04,8.77191176]
[1766898520387,0.69,124.07,124.04,11.81619852]
[1766898522593,0.69,124.07,124.04,8.77191176]
[1766898522773,0.69,124.07,124.04,11.81619852]
[1766898526390,0.69,124.07,124.04,8.77191176]
[1766898526571,0.69,124.07,124.04,11.81619852]
[1766898528091,0.69,124.07,124.02,28.22125463]
[1766898528282,0.66,124.05,124.02,26.48750237]
[1766898531174,0.66,124.05,124.02,11.76750237]
[1766898531369,0.66,124.05,124.02,26.48750237]
[1766898532591,0.66,124.05,124.02,11.76750237]
[1766898532802,0.66,124.05,124.02,26.48750237]
[1766898533401,0.66,124.05,124.03,3.04428676]
[1766898538011,0.66,124.05,124.02,11.76750237]
[1766898538216,0.66,124.05,124.02,26.48750237]
[1766898539119,0.66,124.05,124.02,26.50750237]
[1766898539919,0.66,124.05,124.02,23.46321561]
[1766898540109,0.66,124.05,124.02,26.50750237]
[1766898541315,0.66,124.05,124.02,23.46321561]
[1766898541508,0.66,124.05,124.02,26.50750237]
[1766898543814,0.66,124.05,124.03,3.75428676]
[1766898545520,0.66,124.05,124.03,11.81684671]
[1766898545729,0.65,124.07,124.03,3.75428676]
[1766898545899,0.65,124.06,124.02,26.5572161]
[1766898546729,8.05887841,124.09,124.0,62.61]
[1766898546730,3.04428676,124.05,124.0,62.61]
[1766898546899,0.65,124.03,124.0,18.49428676]
[1766898547913,0.65,124.03,124.0,17.40076252]
[1766898551106,0.65,124.03,124.0,15.45]
[1766898551505,0.65,124.03,124.0,17.40076252]
[1766898551922,0.65,124.03,124.0,2.66076252]
[1766898557143,0.65,124.03,124.0,0.71]
[1766898558131,0.65,124.03,123.99,24.75584964]
[1766898558132,1.95076252,124.03,123.99,8.06508712]
[1766898558338,0.67,124.01,123.98,10.70629405]
[1766898570551,0.67,124.01,123.98,8.75553153]
[1766898570728,0.67,124.01,123.98,10.70629405]
[1766898588038,8.06218045,124.06,123.99,2.67076252]
[1766898588230,0.65,124.03,123.99,2.67076252]
[1766898588430,0.65,124.03,124.0,1.95076252]
[1766898588636,0.65,124.03,124.0,2.67076252]
[1766898589045,0.65,124.03,124.0,10.73477891]
[1766898590763,0.65,124.03,124.01,10.01457269]
[1766898593356,0.65,124.03,124.01,1.95076252]
[1766898594035,0.65,124.03,124.0,25.47504771]
[1766898596066,1.95076252,124.03,124.0,8.06438115]
[1766898596266,0.67,124.02,124.0,8.06438115]
[1766898608189,1.95076252,124.04,124.0,8.06438115]
[1766898608388,1.95076252,124.05,124.0,10.70514367]
[1766898609991,3.04790078,124.05,124.0,11.80228193]
[1766898610166,0.67,124.04,124.0,11.80228193]
[1766898616479,0.67,124.04,124.0,11.11228193]
[1766898616665,0.67,124.04,124.01,0.71]
[1766898624991,0.67,124.06,124.01,8.06373239]
[1766898625292,3.04790078,124.05,124.02,0.71]
[1766898625493,0.67,124.04,124.02,0.71]
[1766898625795,0.67,124.04,124.01,8.77373239]
[1766898626684,14.74,124.07,124.02,0.71]
[1766898626876,0.67,124.05,124.02,0.71]
[1766898627894,0.67,124.05,124.02,8.77311533]
[1766898630101,0.67,124.05,124.02,11.82101611]
[1766898630494,3.04790078,124.05,124.01,8.77386581]
[1766898630686,0.67,124.04,124.01,11.82176659]
[1766898632896,0.67,124.06,124.02,0.71]
[1766898633097,0.67,124.04,124.02,0.71]
[1766898635307,0.67,124.04,124.02,3.75790078]
[1766898636604,0.67,124.04,124.02,11.82096891]
[1766898636986,14.74,124.07,124.02,11.11096891]
[1766898637194,0.67,124.06,124.03,3.75790078]
[1766898649005,3.71790078,124.06,124.03,0.71]
[1766898649203,0.68,124.05,124.03,0.71]
[1766898653630,0.68,124.05,124.03,3.75790078]
[1766898657537,22.7988979,124.09,124.03,11.82037858]
[1766898657737,0.68,124.07,124.04,3.76790078]
[1766898660557,3.72790078,124.07,124.04,0.72]
[1766898661358,0.68,124.06,124.04,0.72]
[1766898665457,0.68,124.06,124.04,3.76790078]
[1766898665858,3.04790078,124.08,124.04,3.76790078]
[1766898666065,0.68,124.07,124.04,3.76790078]
[1766898669368,0.68,124.07,124.04,0.72]
[1766898669769,0.68,124.07,124.04,3.76790078]
[1766898670273,3.04790078,124.05,124.01,0.72]
[1766898670448,0.68,124.04,124.02,0.72]
[1766898670651,3.72790078,124.04,124.02,0.72]
[1766898670985,0.68,124.04,124.02,0.72]
[1766898671575,0.68,124.04,124.02,3.76790078]
[1766898671946,0.68,124.04,124.02,2.67028514]
[1766898672352,0.68,124.05,124.02,2.67028514]
[1766898672551,0.68,124.05,124.02,10.73346235]
[1766898679975,0.68,124.05,124.02,10.01346235]
[1766898680165,0.68,124.05,124.03,0.67]
[1766898683074,0.68,124.06,124.03,10.68271884]
[1766898686083,2.63028514,124.06,124.03,8.7324337]
[1766898690281,0.68,124.06,124.03,10.68271884]
[1766898693498,1.95028514,124.07,124.03,10.68271884]
[1766898693499,0.68,124.07,124.05,0.67]
[1766898695987,0.68,124.08,124.06,0.67]
[1766898698495,17.37028514,124.09,124.06,0.67]
[1766898698693,2.63028514,124.09,124.06,0.67]
[1766898699272,0.68,124.09,124.06,8.73061516]
[1766898699592,0.68,124.09,124.07,0.67]
[1766898705097,0.65,124.11,124.08,0.65]
[1766898705301,2.60028514,124.11,124.08,0.65]
[1766898706190,0.65,124.11,124.08,0.65]
[1766898707204,2.60028514,124.11,124.08,0.65]
[1766898709899,2.60028514,124.1,124.06,8.06037629]
[1766898710203,2.60028514,124.1,124.07,0.72]
[1766898711686,0.65,124.1,124.07,0.72]
[1766898711883,2.60028514,124.1,124.07,0.72]
[1766898715009,0.65,124.1,124.07,0.72]
[1766898715194,2.60028514,124.1,124.07,0.72]
[1766898716911,0.65,124.1,124.07,0.72]
[1766898725228,0.65,124.1,124.07,8.77994942]
[1766898726123,0.65,124.1,124.07,8.05994942]
[1766898726314,0.65,124.1,124.08,0.72]
[1766898735233,0.71,124.11,124.08,11.82364392]
[1766898736430,0.71,124.11,124.08,8.77907818]
[1766898739632,3.04456574,124.11,124.07,0.72]
[1766898739838,8.05672717,124.12,124.07,0.72]
[1766898739839,0.71,124.09,124.07,0.72]
[1766898740537,3.04456574,124.09,124.05,8.78122936]
[1766898740717,3.75456574,124.07,124.03,0.72]
[1766898740923,3.75456574,124.07,124.04,0.72]
[1766898741935,0.71,124.07,124.04,8.7817051]
[1766898748943,0.71,124.07,124.04,11.82627084]
[1766898766967,0.71,124.07,124.04,11.10627084]
[1766898767169,0.71,124.07,124.05,0.71]
[1766898767878,0.71,124.07,124.05,8.77083664]
[1766898772288,0.71,124.08,124.05,11.10540238]
[1766898772489,0.71,124.08,124.06,0.72]
[1766898778882,0.71,124.09,124.06,0.72]
[1766898781363,0.71,124.09,124.05,11.82540238]
[1766898782283,0.71,124.08,124.05,11.82540238]
[1766898782464,0.71,124.08,124.06,0.72]
[1766898782664,3.75456574,124.09,124.06,0.72]
[1766898783189,0.71,124.08,124.06,0.72]
[1766898784972,3.04456574,124.09,124.06,0.72]
[1766898785190,0.71,124.1,124.07,3.76456574]
[1766898786692,0.71,124.1,124.07,11.82414648]
[1766898793999,0.71,124.1,124.07,10.72816687]
[1766898806314,2.65858613,124.11,124.08,0.65]
[1766898807409,0.71,124.1,124.08,0.65]
[1766898811204,0.71,124.1,124.07,10.00816687]
[1766898811387,0.71,124.1,124.07,10.65816687]
[1766898817508,1.94858613,124.11,124.07,10.65816687]
[1766898817509,0.71,124.12,124.07,8.70958074]
[1766898817717,0.71,124.1,124.07,10.65816687]
[1766898823823,0.71,124.1,124.07,10.00816687]
[1766898824124,0.71,124.1,124.08,0.65]
[1766898828624,0.71,124.1,124.08,10.65786157]
[1766898829016,0.71,124.1,124.08,8.70927544]
[1766898829730,0.66,124.11,124.08,10.65786157]
[1766898831431,0.66,124.11,124.08,8.70927544]
[1766898831627,22.77568351,124.14,124.04,82.05394323]
[1766898831628,1.94858613,124.09,124.04,82.05394323]
[1766898831814,0.66,124.08,124.05,8.06086656]
[1766898832013,0.66,124.08,124.04,8.78181133]
[1766898832014,0.66,124.07,124.04,8.78181133]
[1766898832349,0.66,124.06,124.04,0.72]
[1766898832524,1.94858613,124.07,124.04,0.72]
[1766898832724,0.66,124.06,124.04,0.72]
[1766898834933,0.66,124.06,124.04,8.78188662]
[1766898835133,2.60858613,124.07,124.04,8.78188662]
[1766898836907,0.66,124.06,124.04,0.72]
[1766898839235,2.60858613,124.06,124.04,0.72]
[1766898839442,2.60858613,124.06,124.03,0.72]
[1766898839443,1.94858613,124.05,124.03,0.72]
[1766898840023,2.60858613,124.04,124.01,8.78367861]
[1766898840226,2.60858613,124.04,124.02,0.72]
[1766898840422,1.94858613,124.04,124.02,0.72]
[1766898840743,2.60858613,124.05,124.02,0.72]
[1766898842343,1.94858613,124.04,124.02,0.72]
[1766898843142,2.60858613,124.05,124.02,0.72]
[1766898843639,2.60858613,124.05,124.02,8.78318458]
[1766898843830,2.60858613,124.05,124.02,10.73177071]
[1766898844021,2.60858613,124.05,124.02,8.78318458]
[1766898844439,2.60858613,124.05,124.02,10.73177071]
[1766898844637,0.66,124.05,124.02,10.73177071]
[1766898844943,0.66,124.05,124.03,0.72]
[1766898845127,2.60858613,124.05,124.03,0.72]
[1766898845641,1.94858613,124.05,124.03,0.72]
[1766898846149,2.60858613,124.06,124.03,0.72]
[1766898846641,0.66,124.05,124.03,0.72]
[1766898847248,2.60858613,124.05,124.03,0.72]
[1766898847552,0.66,124.05,124.03,0.72]
[1766898847739,2.60858613,124.05,124.03,0.72]
[1766898852650,0.66,124.07,124.03,0.72]
[1766898852851,1.94858613,124.06,124.03,0.72]
[1766898853953,3.04732129,124.06,124.03,0.72]
[1766898855151,0.66,124.07,124.03,0.72]
[1766898855353,3.04732129,124.06,124.03,0.72]
[1766898857251,3.70732129,124.07,124.04,0.65]
[1766898860254,3.04732129,124.06,124.04,0.65]
[1766898872067,0.66,124.07,124.04,0.65]
[1766898872253,3.04732129,124.06,124.04,0.65]
[1766898874965,0.66,124.07,124.04,0.65]
[1766898875169,3.70732129,124.07,124.04,0.65]
[1766898884677,3.70732129,124.07,124.04,8.06182037]
[1766898884892,3.70732129,124.07,124.04,8.77182037]
[1766898891697,0.66,124.07,124.05,0.68]
[1766898895885,0.66,124.07,124.04,0.68]
[1766898896188,3.70732129,124.07,124.04,0.68]
[1766898900287,0.66,124.07,124.04,0.68]
[1766898900592,3.70732129,124.07,124.04,0.68]
[1766898901489,0.66,124.07,124.04,0.68]
[1766898901684,3.70732129,124.07,124.04,0.68]
[1766898903572,3.04732129,124.06,124.04,0.68]
[1766898904490,3.72732129,124.06,124.03,8.7425655]
[1766898906292,3.72732129,124.04,124.01,0.68]
[1766898907087,0.68,124.04,124.01,0.68]
[1766898907290,0.68,124.04,124.01,8.06382514]
[1766898907493,0.68,124.04,124.02,0.68]
[1766898907795,3.72732129,124.04,124.02,0.68]
[1766898911902,0.68,124.04,124.02,0.68]
[1766898912198,3.72732129,124.04,124.02,0.68]
[1766898914002,2.63075735,124.04,124.02,0.68]
[1766898916901,0.68,124.04,124.02,0.68]
[1766898924912,2.63075735,124.04,124.02,0.68]
[1766898930010,0.68,124.04,124.02,0.68]
[1766898961233,2.63075735,124.04,124.02,0.68]
[1766898963556,0.68,124.04,124.02,0.68]
[1766898963728,2.63075735,124.04,124.02,0.68]
[1766898964256,0.68,124.04,124.02,0.68]
[1766898964459,2.63075735,124.04,124.02,0.68]
[1766898967950,2.63075735,124.04,124.01,0.68]
[1766898968146,0.67,124.02,123.99,10.69579707]
[1766898968350,2.62075735,124.02,123.99,8.74503972]
[1766898968525,2.62075735,124.02,124.0,0.68]
[1766898971851,0.67,124.01,123.99,8.74503972]
[1766898972051,2.62075735,124.01,123.99,0.68]
[1766898973264,0.67,124.01,123.99,0.68]
[1766898974261,0.67,124.0,123.97,10.01703221]
[1766898974562,0.67,124.0,123.98,8.06580058]
[1766898974754,0.67,124.0,123.98,10.01655793]
[1766898975060,0.67,124.0,123.97,10.69700731]
[1766898975970,0.67,124.0,123.97,11.79584374]
[1766898977372,0.67,124.0,123.98,3.04959378]
[1766898977861,3.04959378,124.02,123.98,3.76959378]
[1766898978039,0.69,124.01,123.98,3.76959378]
[1766898984264,0.69,124.01,123.98,11.83531691]
[1766898989644,0.69,124.01,123.99,0.72]
[1766898993660,0.69,124.01,123.98,8.06572313]
[1766898994173,0.69,124.01,123.98,8.78572313]
[1766898997074,0.69,124.01,123.98,11.83531691]
[1766898997270,0.69,124.01,123.98,11.11531691]
[1766898997485,0.69,124.01,123.99,0.72]
[1766899014200,0.69,124.01,123.98,11.11531691]
[1766899014401,0.69,124.01,123.98,11.81531691]
[1766899020499,0.69,124.04,123.99,3.74959378]
[1766899020700,0.69,124.02,123.99,3.74959378]
[1766899021094,3.73959378,124.02,123.99,0.7]
[1766899021300,0.69,124.01,123.99,0.7]
[1766899026512,0.69,124.01,123.98,11.81531691]
[1766899027287,0.69,124.01,123.98,8.76572313]
[1766899027498,0.69,124.01,123.98,11.81531691]
[1766899030705,3.73959378,124.02,123.99,0.7]
[1766899032108,0.69,124.01,123.99,0.7]
[1766899035311,0.71,124.04,123.99,8.76499601]
[1766899035514,0.71,124.02,123.99,8.76499601]
[1766899036715,3.75959378,124.02,123.99,8.76499601]
[1766899037901,2.66141619,124.02,123.99,8.76499601]
[1766899038429,0.71,124.01,123.99,0.7]
[1766899038924,2.66141619,124.01,123.99,0.7]
[1766899041026,0.71,124.01,123.99,0.7]
[1766899050535,1.95141619,124.02,123.99,0.7]
[1766899050536,0.71,124.02,123.99,10.71654718]
[1766899053063,0.71,124.02,123.99,8.76513099]
[1766899053245,0.71,124.02,123.99,10.71654718]
[1766899054555,0.71,124.02,123.99,8.76513099]
[1766899056750,0.71,124.02,123.99,0.7]
[1766899057151,2.66141619,124.02,123.99,0.7]
[1766899065067,0.71,124.02,123.99,0.7]
[1766899095202,2.66141619,124.02,123.99,0.7]
[1766899095387,0.71,124.02,123.99,0.7]
[1766899095906,2.66141619,124.02,123.99,0.7]
[1766899099208,0.66,124.01,123.99,0.7]
[1766899099517,2.61141619,124.0,123.97,0.68]
[1766899099682,0.66,124.0,123.97,0.68]
[1766899107308,0.66,124.0,123.97,8.06641097]
[1766899107513,0.66,124.0,123.97,8.74641097]
[1766899108118,0.66,124.0,123.97,8.06641097]
[1766899108312,0.66,124.0,123.97,8.74641097]
[1766899109918,0.66,124.0,123.97,11.1164495]
[1766899110120,0.66,124.0,123.98,0.68]
[1766899126061,0.66,124.0,123.97,11.1164495]
[1766899126234,0.66,124.0,123.97,11.7964495]
[1766899126434,0.66,124.0,123.98,0.68]
[1766899129658,0.66,124.0,123.98,8.74577527]
[1766899130340,0.66,124.01,123.98,11.7958138]
[1766899131654,0.66,124.01,123.98,8.74577527]
[1766899131855,0.66,124.01,123.98,11.7958138]
[1766899139364,0.66,124.01,123.98,0.68]
[1766899140956,0.66,124.01,123.97,11.11625776]
[1766899141164,0.66,124.0,123.97,11.76625776]
[1766899143763,0.66,124.0,123.97,8.71621923]
[1766899144163,0.66,124.0,123.97,11.76625776]
[1766899146962,0.66,124.0,123.98,0.65]
[1766899156776,0.66,124.0,123.97,0.67]
[1766899157069,0.66,124.0,123.97,3.72003853]
[1766899157368,3.05003853,124.0,123.95,16.23034396]
[1766899157573,3.73003853,123.98,123.95,8.8376496]
[1766899159974,2.6328687,123.98,123.95,8.8376496]
[1766899162879,2.6328687,123.98,123.95,0.77]
[1766899170181,0.68,123.97,123.95,0.1]
[1766899170387,0.68,123.96,123.95,0.1]
[1766899171162,0.68,123.98,123.95,0.1]
[1766899176090,0.68,123.98,123.95,0.77]
[1766899197811,2.6328687,123.98,123.95,0.77]
[1766899198407,10.01877054,123.98,123.95,0.1]
[1766899198585,2.6328687,123.97,123.95,0.1]
[1766899200202,1.9528687,123.97,123.95,0.1]
[1766899200410,0.68,123.96,123.95,0.1]
[1766899200704,8.06685939,123.97,123.93,0.67]
[1766899200889,0.68,123.95,123.92,0.1]
[1766899201103,2.6328687,123.95,123.92,0.77]
[1766899202012,1.9528687,123.94,123.92,0.1]
[1766899202310,0.68,123.94,123.92,0.1]
[1766899203112,0.68,123.94,123.92,0.77]
[1766899203923,0.68,123.93,123.92,0.1]
[1766899204414,14.74,123.95,123.92,0.1]
[1766899204610,15.42,123.95,123.92,2.7228687]
[1766899204905,15.42,123.95,123.93,0.67]
[1766899205106,14.74,123.95,123.93,1.9528687]
[1766899205286,14.74,123.95,123.94,0.67]
[1766899206187,0.68,123.96,123.94,0.67]
[1766899206595,0.68,123.96,123.93,1.9528687]
[1766899206812,0.68,123.96,123.93,2.6228687]
[1766899209212,0.68,123.96,123.93,1.9528687]
[1766899209418,0.68,123.96,123.94,0.67]
[1766899209713,0.68,123.96,123.93,1.9528687]
[1766899209912,0.68,123.96,123.93,2.6228687]
[1766899211022,0.68,123.96,123.93,0.67]
[1766899217324,0.71,123.95,123.92,0.77]
[1766899221427,0.71,123.94,123.92,0.1]
[1766899221642,0.71,123.93,123.92,0.1]
[1766899221823,0.71,123.93,123.91,0.1]
[1766899222503,3.05259149,123.93,123.91,0.1]
[1766899222703,3.05259149,123.93,123.89,0.1]
[1766899222704,0.71,123.91,123.89,0.1]
[1766899226131,0.71,123.9,123.88,0.1]
[1766899226444,0.71,123.89,123.88,0.1]
[1766899227323,0.71,123.91,123.88,0.77]
[1766899227618,0.71,123.9,123.88,0.1]
[1766899228331,3.05259149,123.9,123.88,0.1]
[1766899228532,32.2275374,123.92,123.86,2.30252857]
[1766899228533,3.05259149,123.88,123.86,2.30252857]
[1766899228725,3.05259149,123.87,123.86,2.30252857]
[1766899228917,3.05259149,123.88,123.86,2.30252857]
[1766899229311,14.74,123.89,123.86,2.97252857]
[1766899230018,17.79259149,123.89,123.86,2.97252857]
[1766899230227,3.05259149,123.88,123.86,1.80252857]
[1766899230417,3.05259149,123.87,123.86,1e-08]
[1766899231224,11.12557122,123.87,123.86,1e-08]
[1766899232620,3.05259149,123.87,123.86,1e-08]
[1766899233234,8.07255994,123.88,123.86,1e-08]
[1766899233425,3.05259149,123.87,123.86,1e-08]
[1766899233826,8.07255994,123.88,123.86,1e-08]
[1766899234052,3.05259149,123.88,123.86,1e-08]
[1766899235147,3.05259149,123.87,123.86,1e-08]
[1766899236734,26.04591779,123.89,123.86,1e-08]
[1766899236937,3.05259149,123.87,123.86,1e-08]
[1766899239955,26.04591779,123.89,123.86,1e-08]
[1766899240145,3.05259149,123.87,123.86,1e-08]
[1766899241152,26.04591779,123.89,123.86,1e-08]
[1766899241353,3.05259149,123.88,123.86,0.67000001]
[1766899241950,3.05259149,123.88,123.86,1e-08]
[1766899244860,17.79259149,123.89,123.86,1e-08]
[1766899246660,22.81171958,123.89,123.86,1e-08]
[1766899246839,3.05259149,123.88,123.86,1e-08]
[1766899249661,25.86431107,123.89,123.86,1e-08]
[1766899252334,3.05259149,123.88,123.86,1e-08]
[1766899252854,25.86431107,123.89,123.86,1e-08]
[1766899257272,14.74,123.89,123.86,1e-08]
[1766899258373,17.79259149,123.89,123.86,1e-08]
[1766899264378,25.86429216,123.89,123.86,1e-08]
[1766899266378,22.81170067,123.89,123.86,1e-08]
[1766899266558,25.86429216,123.89,123.86,1e-08]
[1766899271784,22.81170067,123.89,123.86,1e-08]
[1766899273881,22.81170067,123.89,123.86,0.72000001]
[1766899275081,14.74,123.89,123.87,0.69]
[1766899275976,14.76,123.91,123.88,0.69]
[1766899279171,14.76,123.91,123.88,3.74259149]
[1766899279683,14.76,123.91,123.88,3.05259149]
[1766899279886,14.76,123.91,123.89,0.69]
[1766899280491,14.76,123.91,123.88,3.05259149]
[1766899280697,14.76,123.91,123.88,3.74259149]
[1766899281193,14.76,123.91,123.88,0.69]
[1766899285695,1.95469096,123.93,123.89,0.69]
[1766899289996,22.82906991,123.94,123.89,0.69]
[1766899290170,24.78376087,123.94,123.89,0.69]
[1766899290378,1.95469096,123.93,123.89,0.69]
[1766899293696,22.82906991,123.94,123.89,0.69]
[1766899293895,1.95469096,123.93,123.89,0.69]
[1766899294201,10.02380859,123.93,123.89,0.69]
[1766899294502,1.95469096,123.92,123.89,0.69]
[1766899299984,10.02380859,123.93,123.89,0.69]
[1766899300494,1.95469096,123.93,123.89,0.69]
[1766899300695,16.71469096,123.94,123.9,0.69]
[1766899311819,1.95469096,123.93,123.9,0.69]
[1766899322327,24.78315097,123.94,123.9,0.69]
[1766899330336,16.71469096,123.94,123.9,0.69]
[1766899331038,14.76,123.94,123.91,0.65]
[1766899334517,14.76,123.94,123.92,0.65]
[1766899335056,24.76203809,123.96,123.92,0.65]
[1766899338359,16.69469096,123.96,123.92,0.65]
[1766899341963,17.79250618,123.96,123.92,0.65]
[1766899346971,17.79250618,123.96,123.93,0.66]
[1766899347469,14.74,123.96,123.93,0.66]
[1766899348049,17.79250618,123.96,123.93,0.66]
[1766899348375,14.74,123.96,123.93,0.66]
[1766899348570,17.79250618,123.96,123.93,0.66]
[1766899351683,3.05250618,123.95,123.9,3.05250618]
[1766899351883,3.05250618,123.95,123.91,0.66]
[1766899356279,3.05250618,123.93,123.9,0.66]
[1766899356980,8.06824753,123.95,123.9,0.66]
[1766899356981,3.05250618,123.94,123.9,0.66]
[1766899357356,8.06824753,123.95,123.9,0.66]
[1766899357555,3.05250618,123.94,123.9,0.66]
[1766899358377,3.05250618,123.92,123.86,1e-08]